fUST/lending_fUST_20250720
["ID","MTS","AMOUNT","RATE_DAILY","PERIOD"]
[373430560,1753003840244,-460.0,0.00019158,2]
[373430561,1753003840254,-460.0,0.00019158,2]
[373430562,1753003840263,-460.0,0.0001916,2]
[373430563,1753003840273,-522.15,0.0001916,2]
[373430564,1753003840282,-460.0,0.0001916,2]
[373430565,1753003840292,-5000.0,0.00019178,2]
[373430566,1753003840301,-666.0,0.00019178,2]
[373430567,1753003840310,-11771.55720998,0.00019229,2]
[373430568,1753003840321,-4811.45685818,0.00019314,2]
[373430569,1753003840330,-30257.81230337,0.00019329,2]
[373430570,1753003840340,-179.94602339,0.00019414,2]
[373430571,1753003840350,-243.49443034,0.00019429,2]
[373430572,1753003840359,-460.0,0.0001943,2]
[373430573,1753003840369,-620.07,0.0001943,2]
[373430575,1753003840378,-547.64,0.0001943,2]
[373430577,1753003840388,-460.0,0.0001943,2]
[373430579,1753003840397,-460.0,0.0001943,2]
[373430582,1753003840407,-460.0,0.00019431,2]
[373430583,1753003840418,-460.0,0.00019431,2]
[373430586,1753003840427,-460.0,0.00019431,2]
[373430587,1753003840437,-460.0,0.00019431,2]
[373430590,1753003840447,-351.02166782,0.00019431,2]
[373430592,1753003840456,-9864.19,0.00019431,2]
[373430594,1753003840466,-460.0,0.00019431,2]
[373430596,1753003840476,-490.89,0.00019431,2]
[373430598,1753003840485,-710.62,0.00019432,2]
[373430600,1753003840495,-1410.48,0.00019432,2]
[373430601,1753003840504,-460.0,0.00019432,2]
[373430603,1753003840513,-591.67,0.00019432,2]
[373430605,1753003840523,-460.0,0.00019434,2]
[373430608,1753003840533,-522.15,0.00019434,2]
[373430610,1753003840542,-460.0,0.00019434,2]
[373430611,1753003840552,-4811.45685818,0.00019521,2]
[373430614,1753003840562,-460.0,0.00019704,2]
[373430616,1753003840571,-620.07,0.00019704,2]
[373430618,1753003840581,-547.64,0.00019704,2]
[373430619,1753003840591,-460.0,0.00019704,2]
[373430622,1753003840601,-460.0,0.00019704,2]
[373430624,1753003840610,-484.91239098,0.00019705,2]
[373430626,1753003840620,-460.0,0.00019705,2]
[373430628,1753003840629,-372.25772257,0.00019705,2]
[373430630,1753003840638,-460.0,0.00019705,2]
[373430632,1753003840648,-9864.19,0.00019705,2]
[373430634,1753003840657,-460.0,0.00019705,2]
[373430636,1753003840668,-490.89,0.00019705,2]
[373430637,1753003840677,-710.62,0.00019706,2]
[373430640,1753003840686,-1410.48,0.00019706,2]
[373430642,1753003840697,-460.0,0.00019706,2]
[373430644,1753003840706,-460.0,0.00019708,2]
[373430646,1753003840715,-522.15,0.00019708,2]
[373430647,1753003840724,-4811.45685818,0.00019728,2]
[373430649,1753003840734,-4811.45685818,0.00019934,2]
[373430650,1753003840743,-500.0,0.00019973,2]
[373430651,1753003840753,-500.94792548,0.00019973,2]
[373430652,1753003840763,-606.86677499,0.00019973,2]
[373430653,1753003840772,-500.0,0.00019973,2]
[373430654,1753003840782,-460.0,0.00019978,2]
[373430655,1753003840792,-620.07,0.00019978,2]
[373430656,1753003840801,-547.64,0.00019978,2]
[373430657,1753003840810,-460.0,0.00019978,2]
[373430658,1753003840819,-460.0,0.00019978,2]
[373430659,1753003840829,-460.0,0.00019979,2]
[373430660,1753003840838,-460.0,0.00019979,2]
[373430661,1753003840847,-9864.19,0.00019979,2]
[373430662,1753003840858,-460.0,0.00019979,2]
[373430663,1753003840867,-490.89,0.00019979,2]
[373430664,1753003840876,-710.62,0.0001998,2]
[373430665,1753003840885,-1410.48,0.0001998,2]
[373430666,1753003840895,-460.0,0.0001998,2]
[373430667,1753003840904,-460.0,0.00019982,2]
[373430668,1753003840916,-522.15,0.00019982,2]
[373430670,1753003840925,-14346.20478963,0.0002,2]
[373430672,1753003840935,-3194.4852885,0.0002,2]
[373430673,1753003840944,-362.71658097,0.0002,2]
[373430675,1753003840954,-51656.44750083,0.0002,5]
[373430677,1753003840963,-35692.89985663,0.0002,2]
[373430679,1753003840972,-160.0,0.00020009,2]
[373430680,1753003840981,-4811.45685818,0.00020141,2]
[373430681,1753003840990,-460.0,0.00020252,2]
[373430682,1753003841000,-620.07,0.00020252,2]
[373430683,1753003841009,-547.64,0.00020252,2]
[373430684,1753003841018,-460.0,0.00020252,2]
[373430685,1753003841028,-460.0,0.00020252,2]
[373430686,1753003841037,-460.0,0.00020253,2]
[373430687,1753003841046,-240.17,0.00020253,2]
[373430688,1753003841059,-9864.19,0.00020253,2]
[373430689,1753003841069,-460.0,0.00020253,2]
[373430690,1753003841078,-490.89,0.00020253,2]
[373430691,1753003841087,-710.62,0.00020254,2]
[373430692,1753003841097,-1410.48,0.00020254,2]
[373430693,1753003841106,-460.0,0.00020254,2]
[373430694,1753003841116,-460.0,0.00020256,2]
[373430695,1753003841125,-522.15,0.00020256,2]
[373430696,1753003841135,-243.49443034,0.00020348,2]
[373430697,1753003841146,-4811.45685818,0.00020348,3]
[373430698,1753003841155,-517.94766044,0.00020521,2]
[373430699,1753003841167,-500.0,0.00020521,2]
[373430700,1753003841176,-460.0,0.00020526,2]
[373430701,1753003841186,-620.07,0.00020526,2]
[373430702,1753003841195,-547.64,0.00020526,2]
[373430703,1753003841206,-328.12,0.00020526,2]
[373430704,1753003841215,-460.0,0.00020526,2]
[373430705,1753003841224,-460.0,0.00020527,2]
[373430706,1753003841234,-9864.19,0.00020527,2]
[373430707,1753003841243,-460.0,0.00020527,2]
[373430708,1753003841253,-490.89,0.00020527,2]
[373430709,1753003841262,-710.62,0.00020528,2]
[373430710,1753003841271,-1410.48,0.00020528,2]
[373430711,1753003841281,-460.0,0.00020528,2]
[373430712,1753003841291,-460.0,0.0002053,2]
[373430714,1753003841300,-522.15,0.0002053,2]
[373430715,1753003841310,-587.0,0.00020553,2]
[373430716,1753003841319,-4811.45685818,0.00020555,3]
[373430717,1753003841328,-260.0,0.00020557,2]
[373430718,1753003841337,-10526.46560873,0.00020739,2]
[373430719,1753003841346,-4811.45685818,0.00020762,3]
[373430720,1753003841356,-460.0,0.000208,2]
[373430721,1753003841365,-620.07,0.000208,2]
[373430722,1753003841374,-547.64,0.000208,2]
[373430723,1753003841384,-460.0,0.000208,2]
[373430724,1753003841393,-460.0,0.00020801,2]
[373430725,1753003841403,-9864.19,0.00020801,2]
[373430726,1753003841412,-460.0,0.00020801,2]
[373430727,1753003841422,-490.89,0.00020801,2]
[373430728,1753003841431,-710.62,0.00020802,2]
[373430729,1753003841440,-1410.48,0.00020802,2]
[373430730,1753003841450,-460.0,0.00020802,2]
[373430731,1753003841459,-460.0,0.00020804,2]
[373430732,1753003841469,-522.15,0.00020804,2]
[373430733,1753003841478,-677.032,0.00020815,2]
[373430734,1753003841487,-4811.45685818,0.00020969,4]
[373430735,1753003841496,-77611.09369325,0.00021,4]
[373430736,1753003841772,-460.0,0.00017238,2]
[373430737,1753003841782,-460.0,0.00017239,2]
[373430738,1753003841791,-460.0,0.00017512,2]
[373430739,1753003841800,-460.0,0.00017513,2]
[373430740,1753003841810,-460.0,0.00017786,2]
[373430741,1753003841819,-460.0,0.00017787,2]
[373430742,1753003841828,-460.0,0.0001806,2]
[373430743,1753003841838,-460.0,0.00018061,2]
[373430744,1753003841847,-186.01374954,0.00018782,2]
[373430745,1753003841856,-460.0,0.00019158,2]
[373430746,1753003841865,-460.0,0.00019432,2]
[373430747,1753003841874,-460.0,0.00019706,2]
[373430748,1753003841883,-460.0,0.00019708,2]
[373430749,1753003841892,-460.0,0.00019982,2]
[373430750,1753003841901,-249.68154296,0.00020256,2]
[373430807,1753003959799,1065.08,0.00024658,60]
[373430808,1753003970691,1065.07,0.00023,30]
[373430811,1753004045216,1099.56648307,0.00027397,120]
[373430815,1753004242549,1541.5,0.0001652,2]
[373430838,1753004692725,150.0,0.00015693,2]
[373430839,1753004799348,5152.9199767,0.00016404,2]
[373430841,1753004811308,163.646828,0.00013699,2]
[373430842,1753004813092,-181.91707848,0.00016581,2]
[373430908,1753005032803,-5981.78590452,0.00016581,2]
[373430924,1753005033020,-1200.0,0.00017234,2]
[373430926,1753005033030,-300.0,0.00017235,2]
[373430928,1753005033041,-300.0,0.00017235,2]
[373430930,1753005033051,-300.0,0.00017235,2]
[373430932,1753005033061,-300.0,0.00017235,2]
[373430934,1753005033071,-300.0,0.00017235,2]
[373430936,1753005033081,-287.50273417,0.00017238,2]
[373430938,1753005033090,-484.91239098,0.00017238,2]
[373430940,1753005033100,-460.0,0.00017238,2]
[373430942,1753005033110,-460.0,0.00017238,2]
[373430944,1753005033121,-460.0,0.00017238,2]
[373430946,1753005033132,-805.48,0.00017239,2]
[373430948,1753005033142,-460.0,0.00017239,2]
[373430950,1753005033153,-460.0,0.00017239,2]
[373430952,1753005033163,-460.0,0.00017239,2]
[373430954,1753005033173,-1206.02,0.00017239,2]
[373430956,1753005033183,-460.0,0.00017239,2]
[373430958,1753005033194,-460.0,0.00017239,2]
[373430960,1753005033203,-460.0,0.00017239,2]
[373430962,1753005033213,-646.02,0.00017239,2]
[373430964,1753005033222,-203.18003925,0.00017398,2]
[373430966,1753005033232,-331.56192139,0.00017412,2]
[373430968,1753005033242,-460.0,0.0001751,2]
[373430970,1753005033251,-460.0,0.0001751,2]
[373430972,1753005033261,-460.0,0.00017511,2]
[373430974,1753005033271,-523.53136242,0.00017511,2]
[373430976,1753005033280,-835.76,0.00017511,2]
[373430978,1753005033290,-460.0,0.00017511,2]
[373430980,1753005033299,-651.84,0.00017511,2]
[373430982,1753005033309,-460.0,0.00017511,2]
[373430984,1753005033318,-367.93,0.00017511,2]
[373430986,1753005033328,-1581.03,0.00017511,2]
[373430988,1753005033337,-460.0,0.00017511,2]
[373430990,1753005033347,-460.0,0.00017511,2]
[373430991,1753005033356,-460.0,0.00017511,2]
[373430992,1753005033366,-460.0,0.00017511,2]
[373430993,1753005033375,-460.0,0.00017511,2]
[373430994,1753005033385,-460.0,0.00017512,2]
[373430995,1753005033395,-460.0,0.00017512,2]
[373430996,1753005033405,-460.0,0.00017512,2]
[373430997,1753005033414,-7132.07,0.00017512,2]
[373430998,1753005033423,-460.0,0.00017512,2]
[373430999,1753005033433,-460.0,0.00017512,2]
[373431000,1753005033443,-525.24,0.00017512,2]
[373431001,1753005033453,-805.48,0.00017513,2]
[373431002,1753005033463,-460.0,0.00017513,2]
[373431003,1753005033473,-372.25772257,0.00017513,2]
[373431004,1753005033482,-1206.02,0.00017513,2]
[373431005,1753005033492,-460.0,0.00017513,2]
[373431006,1753005033502,-460.0,0.00017513,2]
[373431007,1753005033512,-460.0,0.00017513,2]
[373431008,1753005033522,-646.02,0.00017513,2]
[373431009,1753005033531,-323.19671908,0.00017784,2]
[373431010,1753005033541,-460.0,0.00017785,2]
[373431011,1753005033551,-460.0,0.00017785,2]
[373431012,1753005033560,-835.76,0.00017785,2]
[373431013,1753005033569,-460.0,0.00017785,2]
[373431014,1753005033579,-651.84,0.00017785,2]
[373431015,1753005033588,-460.0,0.00017785,2]
[373431016,1753005033597,-1581.03,0.00017785,2]
[373431017,1753005033607,-460.0,0.00017785,2]
[373431018,1753005033616,-460.0,0.00017785,2]
[373431019,1753005033626,-460.0,0.00017785,2]
[373431020,1753005033635,-460.0,0.00017785,2]
[373431021,1753005033648,-460.0,0.00017785,2]
[373431022,1753005033658,-460.0,0.00017786,2]
[373431023,1753005033667,-460.0,0.00017786,2]
[373431024,1753005033676,-460.0,0.00017786,2]
[373431025,1753005033685,-7132.07,0.00017786,2]
[373431026,1753005033698,-460.0,0.00017786,2]
[373431027,1753005033708,-460.0,0.00017786,2]
[373431028,1753005033718,-525.24,0.00017786,2]
[373431029,1753005033728,-805.48,0.00017787,2]
[373431030,1753005033738,-460.0,0.00017787,2]
[373431031,1753005033747,-1206.02,0.00017787,2]
[373431032,1753005033756,-460.0,0.00017787,2]
[373431033,1753005033766,-460.0,0.00017787,2]
[373431034,1753005033775,-460.0,0.00017787,2]
[373431035,1753005033785,-7118.54210194,0.000179,2]
[373431036,1753005033794,-460.0,0.00018059,2]
[373431037,1753005033804,-835.76,0.00018059,2]
[373431038,1753005033814,-460.0,0.00018059,2]
[373431039,1753005033825,-651.84,0.00018059,2]
[373431040,1753005033834,-460.0,0.00018059,2]
[373431041,1753005033843,-1581.03,0.00018059,2]
[373431042,1753005033861,-460.0,0.00018059,2]
[373431043,1753005033873,-460.0,0.00018059,2]
[373431044,1753005033883,-460.0,0.00018059,2]
[373431045,1753005033893,-460.0,0.00018059,2]
[373431046,1753005033903,-460.0,0.00018059,2]
[373431047,1753005033913,-351.02166782,0.0001806,2]
[373431048,1753005033922,-460.0,0.0001806,2]
[373431049,1753005033932,-1787.11881925,0.0001806,2]
[373431050,1753005033946,-353.79393509,0.0001806,2]
[373431051,1753005033963,-4991.15724566,0.0001806,2]
[373431052,1753005033973,-460.0,0.0001806,2]
[373431053,1753005033983,-460.0,0.0001806,2]
[373431054,1753005033993,-525.24,0.0001806,2]
[373431055,1753005034002,-805.48,0.00018061,2]
[373431056,1753005034012,-460.0,0.00018061,2]
[373431057,1753005034022,-1206.02,0.00018061,2]
[373431058,1753005034032,-460.0,0.00018061,2]
[373431059,1753005034042,-460.0,0.00018061,2]
[373431060,1753005034052,-460.0,0.00018061,2]
[373431061,1753005034062,-2798.02242689,0.00018141,2]
[373431070,1753005039338,-460.0,0.0001751,2]
[373431071,1753005039348,-646.02,0.00017787,2]
[373431072,1753005039357,-646.02,0.00018061,2]
[373431073,1753005039367,-4320.51967497,0.00018141,2]
[373431074,1753005039376,-215.67942139,0.00018324,2]
[373431075,1753005039386,-460.0,0.00018333,2]
[373431076,1753005039396,-835.76,0.00018333,2]
[373431077,1753005039405,-460.0,0.00018333,2]
[373431078,1753005039415,-651.84,0.00018333,2]
[373431079,1753005039424,-460.0,0.00018333,2]
[373431080,1753005039433,-1581.03,0.00018333,2]
[373431081,1753005039443,-460.0,0.00018333,2]
[373431082,1753005039453,-460.0,0.00018333,2]
[373431083,1753005039462,-460.0,0.00018333,2]
[373431084,1753005039472,-460.0,0.00018333,2]
[373431085,1753005039481,-460.0,0.00018333,2]
[373431086,1753005039491,-460.0,0.00018334,2]
[373431087,1753005039500,-7132.07,0.00018334,2]
[373431088,1753005039509,-460.0,0.00018334,2]
[373431089,1753005039519,-690.69,0.00018334,2]
[373431090,1753005039528,-460.0,0.00018334,2]
[373431091,1753005039537,-525.24,0.00018334,2]
[373431092,1753005039546,-460.0,0.00018334,2]
[373431093,1753005039555,-805.48,0.00018335,2]
[373431094,1753005039564,-460.0,0.00018335,2]
[373431095,1753005039574,-1206.02,0.00018335,2]
[373431096,1753005039583,-460.0,0.00018335,2]
[373431097,1753005039593,-360.72,0.00018335,2]
[373431098,1753005039603,-460.0,0.00018335,2]
[373431099,1753005039614,-646.02,0.00018335,2]
[373431100,1753005039624,-7118.54210186,0.00018383,2]
[373431101,1753005039633,-331.56192138,0.00018537,2]
[373431102,1753005039644,-460.0,0.00018607,2]
[373431103,1753005039656,-835.76,0.00018607,2]
[373431104,1753005039666,-460.0,0.00018607,2]
[373431105,1753005039675,-651.84,0.00018607,2]
[373431106,1753005039688,-460.0,0.00018607,2]
[373431107,1753005039699,-1581.03,0.00018607,2]
[373431108,1753005039708,-460.0,0.00018607,2]
[373431109,1753005039718,-460.0,0.00018607,2]
[373431110,1753005039727,-398.98,0.00018607,2]
[373431111,1753005039738,-460.0,0.00018607,2]
[373431112,1753005039747,-7132.07,0.00018608,2]
[373431113,1753005039757,-460.0,0.00018608,2]
[373431114,1753005039767,-690.69,0.00018608,2]
[373431115,1753005039777,-460.0,0.00018608,2]
[373431116,1753005039786,-525.24,0.00018608,2]
[373431117,1753005039796,-460.0,0.00018608,2]
[373431118,1753005039805,-805.48,0.00018609,2]
[373431119,1753005039814,-460.0,0.00018609,2]
[373431120,1753005039824,-1206.02,0.00018609,2]
[373431121,1753005039834,-460.0,0.00018609,2]
[373431122,1753005039843,-460.0,0.00018609,2]
[373431123,1753005039853,-646.02,0.00018609,2]
[373431124,1753005039862,-7118.54210186,0.00018624,2]
[373431125,1753005039872,-390.0,0.0001882,2]
[373431126,1753005039881,-690.76,0.00018856,3]
[373431127,1753005039890,-345.38,0.00018856,3]
[373431128,1753005039900,-172.69,0.00018856,3]
[373431129,1753005039910,-518.07,0.00018856,3]
[373431130,1753005039919,-7118.54210186,0.00018866,2]
[373431131,1753005039929,-460.0,0.00018881,2]
[373431132,1753005039938,-835.76,0.00018881,2]
[373431133,1753005039948,-460.0,0.00018881,2]
[373431134,1753005039957,-651.84,0.00018881,2]
[373431135,1753005039967,-460.0,0.00018881,2]
[373431136,1753005039978,-1581.03,0.00018881,2]
[373431137,1753005039987,-460.0,0.00018881,2]
[373431138,1753005039996,-362.42839026,0.00018881,2]
[373431139,1753005040006,-460.0,0.00018881,2]
[373431140,1753005040015,-7132.07,0.00018882,2]
[373431141,1753005040025,-460.0,0.00018882,2]
[373431142,1753005040034,-690.69,0.00018882,2]
[373431143,1753005040043,-460.0,0.00018882,2]
[373431144,1753005040053,-525.24,0.00018882,2]
[373431145,1753005040062,-460.0,0.00018882,2]
[373431146,1753005040071,-805.48,0.00018883,2]
[373431147,1753005040082,-460.0,0.00018883,2]
[373431148,1753005040092,-1206.02,0.00018883,2]
[373431149,1753005040101,-460.0,0.00018883,2]
[373431150,1753005040111,-460.0,0.00018883,2]
[373431151,1753005040121,-646.02,0.00018883,2]
[373431152,1753005040131,-1810.88285313,0.000189,2]
[373431153,1753005040142,-160.0,0.0001897,2]
[373431154,1753005040152,-525.91036056,0.00019004,2]
[373431155,1753005040162,-476.42619115,0.00019004,2]
[373431156,1753005040172,-160.0,0.00019004,2]
[373431157,1753005040182,-214.5637056,0.00019004,2]
[373431159,1753005040192,-12615.16111038,0.00019004,2]
[373431160,1753005040202,-230.98123516,0.00019004,2]
[373431161,1753005040211,-839.59621281,0.00019004,2]
[373431162,1753005040221,-160.0,0.00019004,2]
[373431163,1753005040231,-160.0,0.00019004,2]
[373431164,1753005040241,-160.0,0.00019004,2]
[373431165,1753005040251,-160.0,0.00019004,2]
[373431166,1753005040260,-215.71456056,0.00019004,2]
[373431167,1753005040270,-160.0,0.00019004,2]
[373431168,1753005040279,-194.79554428,0.00019056,2]
[373431169,1753005040289,-7118.54210186,0.00019107,2]
[373431170,1753005040299,-460.0,0.00019155,2]
[373431171,1753005040308,-835.76,0.00019155,2]
[373431172,1753005040317,-460.0,0.00019155,2]
[373431173,1753005040327,-651.84,0.00019155,2]
[373431174,1753005040337,-460.0,0.00019155,2]
[373431176,1753005040347,-1581.03,0.00019155,2]
[373431177,1753005040356,-590.63,0.00019155,2]
[373431178,1753005040365,-460.0,0.00019155,2]
[373431179,1753005040375,-7132.07,0.00019156,2]
[373431180,1753005040384,-460.0,0.00019156,2]
[373431181,1753005040393,-690.69,0.00019156,2]
[373431183,1753005040403,-460.0,0.00019156,2]
[373431184,1753005040412,-525.24,0.00019156,2]
[373431185,1753005040421,-460.0,0.00019156,2]
[373431186,1753005040431,-805.48,0.00019157,2]
[373431187,1753005040441,-460.0,0.00019157,2]
[373431188,1753005040451,-1206.02,0.00019157,2]
[373431189,1753005040460,-460.0,0.00019157,2]
[373431190,1753005040470,-460.0,0.00019157,2]
[373431191,1753005040479,-646.02,0.00019157,2]
[373431192,1753005040489,-170.977828,0.00019178,2]
[373431193,1753005040498,-5000.0,0.00019178,2]
[373431194,1753005040507,-5000.0,0.00019178,2]
[373431195,1753005040517,-1271.84472331,0.00019178,2]
[373431196,1753005040526,-11771.55720998,0.00019248,2]
[373431197,1753005040536,-7118.54210186,0.00019348,2]
[373431198,1753005040546,-179.94602339,0.00019414,2]
[373431199,1753005040555,-460.0,0.00019429,2]
[373431200,1753005040564,-835.76,0.00019429,2]
[373431201,1753005040574,-651.84,0.00019429,2]
[373431202,1753005040583,-460.0,0.00019429,2]
[373431203,1753005040595,-1581.03,0.00019429,2]
[373431204,1753005040604,-460.0,0.00019429,2]
[373431205,1753005040615,-7132.07,0.0001943,2]
[373431206,1753005040625,-460.0,0.0001943,2]
[373431207,1753005040634,-690.69,0.0001943,2]
[373431208,1753005040646,-460.0,0.0001943,2]
[373431209,1753005040656,-525.24,0.0001943,2]
[373431210,1753005040666,-460.0,0.0001943,2]
[373431211,1753005040676,-805.48,0.00019431,2]
[373431212,1753005040686,-204.82,0.00019431,2]
[373431213,1753005040697,-1206.02,0.00019431,2]
[373431214,1753005040707,-460.0,0.00019431,2]
[373431215,1753005040716,-460.0,0.00019431,2]
[373431216,1753005040726,-646.02,0.00019431,2]
[373431217,1753005040736,-260.0,0.00019518,2]
[373431218,1753005040746,-7118.54210186,0.0001959,2]
[373431219,1753005040755,-331.56192138,0.00019663,2]
[373431220,1753005040765,-460.0,0.00019703,2]
[373431222,1753005040775,-835.76,0.00019703,2]
[373431224,1753005040784,-651.84,0.00019703,2]
[373431226,1753005040793,-460.0,0.00019703,2]
[373431228,1753005040803,-1581.03,0.00019703,2]
[373431230,1753005040812,-460.0,0.00019703,2]
[373431232,1753005040821,-7132.07,0.00019704,2]
[373431234,1753005040831,-460.0,0.00019704,2]
[373431236,1753005040840,-690.69,0.00019704,2]
[373431238,1753005040850,-460.0,0.00019704,2]
[373431240,1753005040859,-525.24,0.00019704,2]
[373431242,1753005040869,-460.0,0.00019704,2]
[373431244,1753005040879,-805.48,0.00019705,2]
[373431246,1753005040888,-1206.02,0.00019705,2]
[373431248,1753005040898,-460.0,0.00019705,2]
[373431249,1753005040907,-460.0,0.00019705,2]
[373431250,1753005040917,-646.02,0.00019705,2]
[373431251,1753005040927,-7118.54210186,0.00019831,2]
[373431252,1753005040937,-194.79554427,0.00019892,2]
[373431253,1753005040947,-460.0,0.00019977,2]
[373431254,1753005040957,-835.76,0.00019977,2]
[373431255,1753005040967,-651.84,0.00019977,2]
[373431256,1753005040976,-460.0,0.00019977,2]
[373431257,1753005040986,-1581.03,0.00019977,2]
[373431258,1753005040995,-240.17,0.00019977,2]
[373431259,1753005041212,-7132.07,0.00019978,2]
[373431260,1753005041222,-460.0,0.00019978,2]
[373431261,1753005041232,-690.69,0.00019978,2]
[373431262,1753005041241,-460.0,0.00019978,2]
[373431263,1753005041251,-525.24,0.00019978,2]
[373431264,1753005041260,-460.0,0.00019978,2]
[373431265,1753005041269,-805.48,0.00019979,2]
[373431266,1753005041279,-1206.02,0.00019979,2]
[373431267,1753005041288,-460.0,0.00019979,2]
[373431268,1753005041298,-460.0,0.00019979,2]
[373431269,1753005041319,-646.02,0.00019979,2]
[373431270,1753005041329,-100000.0,0.0001999,2]
[373431271,1753005041339,-408.42884922,0.0002,3]
[373431272,1753005041349,-360.0,0.00020066,2]
[373431273,1753005041359,-7118.54210186,0.00020072,2]
[373431274,1753005041369,-5000.0,0.00020165,2]
[373431275,1753005041379,-1381.52,0.00020226,3]
[373431276,1753005041389,-690.76,0.00020226,3]
[373431277,1753005041399,-345.38,0.00020226,3]
[373431278,1753005041410,-460.0,0.00020251,2]
[373431279,1753005041419,-835.76,0.00020251,2]
[373431280,1753005041429,-651.84,0.00020251,2]
[373431281,1753005041440,-460.0,0.00020251,2]
[373431282,1753005041451,-1581.03,0.00020251,2]
[373431283,1753005041460,-7132.07,0.00020252,2]
[373431284,1753005041470,-460.0,0.00020252,2]
[373431285,1753005041480,-690.69,0.00020252,2]
[373431286,1753005041490,-460.0,0.00020252,2]
[373431287,1753005041500,-525.24,0.00020252,2]
[373431288,1753005041510,-460.0,0.00020252,2]
[373431289,1753005041519,-805.48,0.00020253,2]
[373431290,1753005041529,-1206.02,0.00020253,2]
[373431291,1753005041538,-460.0,0.00020253,2]
[373431292,1753005041548,-460.0,0.00020253,2]
[373431293,1753005041557,-646.02,0.00020253,2]
[373431294,1753005041568,-7118.54210186,0.00020314,3]
[373431295,1753005041577,-476.42619115,0.00020314,3]
[373431296,1753005041587,-6216.11379264,0.00020486,2]
[373431297,1753005041596,-460.0,0.00020525,2]
[373431298,1753005041606,-835.76,0.00020525,2]
[373431299,1753005041615,-651.84,0.00020525,2]
[373431300,1753005041625,-460.0,0.00020525,2]
[373431301,1753005041634,-1581.03,0.00020525,2]
[373431302,1753005041645,-7132.07,0.00020526,2]
[373431303,1753005041657,-348.67,0.00020526,2]
[373431304,1753005041667,-690.69,0.00020526,2]
[373431305,1753005041677,-460.0,0.00020526,2]
[373431306,1753005041687,-525.24,0.00020526,2]
[373431307,1753005041699,-460.0,0.00020526,2]
[373431308,1753005041709,-805.48,0.00020527,2]
[373431309,1753005041719,-1206.02,0.00020527,2]
[373431310,1753005041729,-460.0,0.00020527,2]
[373431311,1753005041739,-460.0,0.00020527,2]
[373431312,1753005041749,-646.02,0.00020527,2]
[373431313,1753005041759,-7118.54210186,0.00020555,3]
[373431314,1753005041769,-12615.16111038,0.00020555,3]
[373431315,1753005041778,-460.0,0.00020614,2]
[373431316,1753005041788,-500.0,0.00020711,2]
[373431317,1753005041798,-500.0,0.00020711,2]
[373431318,1753005041807,-194.79554427,0.00020728,2]
[373431319,1753005041817,-500.0,0.0002078,2]
[373431320,1753005041826,-7118.54210186,0.00020797,4]
[373431321,1753005041835,-460.0,0.00020799,2]
[373431322,1753005041844,-835.76,0.00020799,2]
[373431323,1753005041854,-651.84,0.00020799,2]
[373431324,1753005041863,-460.0,0.00020799,2]
[373431325,1753005041873,-1581.03,0.00020799,2]